bitfinex/quotes_SOLUSD_20251001
["timestamp","ask_amount","ask_price","bid_price","bid_amount"]
[1759321022783,0.69,217.64,217.51,20.8]
[1759321022980,0.69,217.64,217.55,20.8]
[1759321023765,4.59495473,217.63,217.56,4.59643316]
[1759321024076,0.69,217.64,217.57,34.26]
[1759321024272,4.59463999,217.65,217.57,34.26]
[1759321024595,13.59559401,217.66,217.57,34.26]
[1759321024889,5.28431673,217.67,217.58,34.24]
[1759321024890,0.69,217.65,217.58,34.24]
[1759321025079,13.59559401,217.67,217.58,34.24]
[1759321025080,34.39559401,217.67,217.58,34.24]
[1759321025283,13.59559401,217.67,217.58,34.24]
[1759321025781,18.18973822,217.67,217.59,4.59579943]
[1759321025993,18.18971232,217.67,217.59,4.59579943]
[1759321026503,13.59559401,217.7,217.59,16.08529802]
[1759321026658,5.28331778,217.71,217.62,20.8]
[1759321026861,5.28331778,217.71,217.63,34.22]
[1759321027061,5.28326868,217.71,217.63,34.22]
[1759321027262,0.69,217.71,217.63,34.22]
[1759321027987,13.59559401,217.72,217.64,4.59474361]
[1759321028163,11.07076588,217.73,217.64,4.59474361]
[1759321028164,4.59284434,217.73,217.64,4.59474361]
[1759321028359,7.26792154,217.74,217.66,20.8]
[1759321028360,0.1,217.74,217.66,20.8]
[1759321028587,0.1,217.74,217.67,35.84]
[1759321028798,20.07351555,217.72,217.68,34.2]
[1759321028972,7.16792154,217.71,217.68,34.2]
[1759321029172,7.16792154,217.71,217.69,34.22]
[1759321029519,13.59559401,217.72,217.69,34.22]
[1759321029720,0.1,217.74,217.69,34.22]
[1759321029894,0.1,217.74,217.69,38.81366296]
[1759321030072,0.1,217.74,217.67,35.84]
[1759321030264,20.07351555,217.73,217.67,35.84]
[1759321030460,6.47792154,217.71,217.68,34.42]
[1759321030670,20.07351555,217.73,217.68,34.42]
[1759321030889,0.69,217.72,217.68,34.42]
[1759321031065,0.69,217.71,217.68,34.42]
[1759321031389,7.16792154,217.7,217.69,34.42]
[1759321032098,11.7613988,217.7,217.69,34.42]
[1759321032595,18.87907127,217.7,217.69,34.42]
[1759321033188,25.35699281,217.7,217.69,34.4]
[1759321033489,4.59325022,217.72,217.69,34.4]
[1759321033889,5.28325022,217.72,217.69,34.4]
[1759321034093,7.16792154,217.71,217.69,34.4]
[1759321034387,5.28347726,217.7,217.69,34.4]
[1759321034693,4.59347726,217.7,217.69,34.4]
[1759321035099,5.28312708,217.72,217.69,34.4]
[1759321035268,25.35664263,217.72,217.69,34.4]
[1759321035469,0.69,217.71,217.69,34.4]
[1759321035664,24.66664263,217.72,217.69,34.4]
[1759321036189,4.59284434,217.73,217.69,34.4]
[1759321036387,0.1,217.74,217.69,38.99368697]
[1759321036812,0.1,217.74,217.69,50.47790765]
[1759321036971,0.1,217.74,217.72,20.8]
[1759321037170,0.1,217.74,217.73,34.34]
[1759321037869,0.1,217.91,217.73,34.34]
[1759321037870,0.1,217.91,217.76,20.8]
[1759321038065,0.1,217.91,217.8,20.8]
[1759321038294,7.26792154,217.91,217.8,20.8]
[1759321038594,11.1676422,217.88,217.74,11.48130419]
[1759321038801,6.47792154,217.87,217.77,20.8]
[1759321038999,6.47792154,217.87,217.78,20.8]
[1759321039294,6.47792154,217.86,217.79,34.34]
[1759321039596,16.85392664,217.88,217.7,13.59559401]
[1759321039597,34.39559401,217.85,217.7,4.59347672]
[1759321039821,6.47792154,217.81,217.71,34.32]
[1759321039988,6.47792154,217.82,217.71,20.8]
[1759321040189,6.47792154,217.82,217.72,34.34]
[1759321040190,6.47792154,217.81,217.72,34.34]
[1759321040391,11.06928976,217.8,217.72,34.34]
[1759321040596,22.54771032,217.8,217.73,34.32]
[1759321040782,6.47792154,217.79,217.71,20.8]
[1759321040980,6.47792154,217.79,217.72,34.32]
[1759321040981,6.47792154,217.78,217.72,34.32]
[1759321041184,6.47792154,217.78,217.73,34.32]
[1759321041406,6.47792154,217.76,217.71,20.8]
[1759321041599,0.69,217.75,217.72,34.3]
[1759321041775,4.59136822,217.8,217.73,34.3]
[1759321041973,17.95485412,217.83,217.67,61.2340216]
[1759321041974,18.18673502,217.82,217.74,34.3]
[1759321043103,4.59075927,217.83,217.74,38.89253046]
[1759321043395,11.47500008,217.87,217.74,38.89253046]
[1759321043396,0.68,217.87,217.77,20.8]
[1759321043569,5.26989305,217.87,217.78,34.3]
[1759321043769,4.58989305,217.87,217.78,34.3]
[1759321044303,4.58989305,217.87,217.79,34.28]
[1759321044482,16.06462568,217.87,217.79,34.28]
[1759321044688,4.58989305,217.87,217.79,34.28]
[1759321044880,23.22254722,217.87,217.8,34.26]
[1759321045085,23.22254722,217.87,217.81,34.26]
[1759321045086,13.59559401,217.86,217.81,34.26]
[1759321045284,20.07351555,217.86,217.82,34.26]
[1759321045482,0.68,217.85,217.83,34.26]
[1759321045686,0.68,217.85,217.74,25.39246329]
[1759321045996,13.59559401,217.84,217.75,34.26]
[1759321046502,6.47792154,217.82,217.76,34.24]
[1759321046679,16.069051,217.81,217.77,34.24]
[1759321046997,0.68,217.8,217.68,4.5938993]
[1759321047338,6.47792154,217.79,217.69,34.24]
[1759321047499,6.47792154,217.79,217.69,55.04]
[1759321047985,4.59115743,217.81,217.72,20.8]
[1759321048783,16.06757562,217.83,217.73,4.59284434]
[1759321048990,16.06757562,217.83,217.74,34.22]
[1759321049174,13.59559401,217.82,217.74,34.22]
[1759321049378,4.38455161,217.81,217.7,20.8]
[1759321049600,4.38455161,217.79,217.67,35.84]
[1759321049905,4.38455161,217.79,217.71,34.2]
[1759321050093,13.59559401,217.79,217.71,34.2]
[1759321050406,4.38455161,217.77,217.7,20.8]
[1759321050588,17.98014562,217.77,217.71,34.2]
[1759321050789,4.5922116,217.76,217.71,34.2]
[1759321050995,5.2722116,217.76,217.71,34.2]
[1759321051197,4.5922116,217.76,217.71,34.2]
[1759321051401,4.59195665,217.78,217.71,34.2]
[1759321051710,4.59115743,217.81,217.71,59.59325751]
[1759321052106,4.59115743,217.81,217.74,20.8]
[1759321052510,4.59115743,217.81,217.71,38.79325751]
[1759321052716,4.59115743,217.81,217.71,59.59325751]
[1759321052912,11.47789357,217.81,217.71,59.59325751]
[1759321054320,4.59094665,217.82,217.71,59.59325751]
[1759321054525,16.06831328,217.82,217.71,59.59325751]
[1759321055116,18.66014562,217.81,217.71,20.8]
[1759321055320,4.38455161,217.8,217.72,34.16]
[1759321055499,4.38455161,217.8,217.68,4.59385485]
[1759321055500,4.38455161,217.78,217.68,4.59385485]
[1759321055708,4.38455161,217.78,217.69,34.16]
[1759321056023,4.59178987,217.78,217.69,38.75364469]
[1759321056320,16.07126456,217.78,217.69,38.75364469]
[1759321056525,16.07126456,217.78,217.69,34.16]
[1759321057228,5.27150953,217.8,217.69,34.16]
[1759321057393,4.59150953,217.8,217.69,50.23790014]
[1759321057594,4.59150953,217.8,217.69,38.75367946]
[1759321058530,13.59559401,217.79,217.69,38.75367946]
[1759321058713,4.38455161,217.77,217.7,20.8]
[1759321059031,4.38455161,217.73,217.71,34.1]
[1759321059225,21.48,217.76,217.71,34.1]
[1759321059226,18.66014562,217.72,217.71,34.1]
[1759321059409,14.27559401,217.72,217.71,34.1]
[1759321059611,4.38455161,217.75,217.71,34.1]
[1759321059816,4.38455161,217.73,217.71,34.1]
[1759321060021,5.06455161,217.72,217.67,35.84]
[1759321060337,4.38455161,217.74,217.68,34.08]
[1759321060506,4.59263341,217.74,217.68,34.08]
[1759321060920,20.45876856,217.74,217.68,34.08]
[1759321061230,20.45876856,217.74,217.67,35.84]
[1759321061231,4.38455161,217.72,217.67,35.84]
[1759321061399,4.38455161,217.7,217.68,34.06]
[1759321061601,4.38455161,217.71,217.68,34.06]
[1759321061804,5.06455161,217.71,217.68,34.06]
[1759321062007,18.66014562,217.7,217.67,35.84]
[1759321062212,18.66014562,217.69,217.68,34.06]
[1759321062603,23.25383389,217.69,217.68,34.06]
[1759321062999,23.25383389,217.69,217.67,35.84]
[1759321063234,20.8,217.66,217.55,35.82]
[1759321063532,18.66014562,217.68,217.56,34.06]
[1759321063831,0.68,217.68,217.59,20.8]
[1759321064138,4.59368827,217.69,217.6,34.1]
[1759321064636,4.59347726,217.7,217.63,20.8]
[1759321064931,4.59347726,217.7,217.64,34.1]
[1759321065708,13.59559401,217.73,217.64,34.1]
[1759321065709,4.59310351,217.72,217.64,34.1]
[1759321065929,16.07574176,217.72,217.64,34.1]
[1759321066103,4.59310351,217.72,217.64,34.1]
[1759321066541,4.59263343,217.74,217.64,34.1]
[1759321066715,11.47980366,217.78,217.64,34.1]
[1759321066716,4.5924225,217.75,217.67,20.8]
[1759321066917,13.59559401,217.78,217.68,20.8]
[1759321067118,4.59136822,217.8,217.69,34.08]
[1759321067508,4.59136822,217.8,217.72,20.8]
[1759321067718,4.59073589,217.83,217.72,20.8]
[1759321068741,16.06757562,217.83,217.73,4.59284434]
[1759321068915,16.06757562,217.83,217.74,34.1]
[1759321068916,0.68,217.82,217.74,34.1]
[1759321069234,0.68,217.82,217.75,35.82]
[1759321069810,4.59115743,217.81,217.75,35.82]
[1759321070010,16.749051,217.81,217.75,35.82]
[1759321070211,16.749051,217.81,217.76,34.06]
[1759321070427,18.66014562,217.8,217.77,34.04]
[1759321070639,4.38455161,217.78,217.77,34.04]
[1759321070945,5.06455161,217.78,217.77,34.04]
[1759321071238,0.68,217.78,217.77,34.04]
[1759321071437,17.98014562,217.8,217.77,34.04]
[1759321071624,13.59559401,217.8,217.77,34.04]
[1759321071936,5.27157904,217.79,217.77,34.04]
[1759321072810,4.59157904,217.79,217.77,34.04]
[1759321073640,5.31157904,217.79,217.77,34.04]
[1759321073956,0.72,217.78,217.77,34.04]
[1759321074136,4.59157904,217.79,217.77,34.04]
[1759321074335,5.31157904,217.79,217.77,34.04]
[1759321074748,0.72,217.78,217.75,35.82]
[1759321075052,5.10455161,217.77,217.76,34.0]
[1759321075232,18.70014562,217.77,217.76,34.0]
[1759321076255,13.59559401,217.76,217.75,35.82]
[1759321076561,18.70014562,217.76,217.75,69.8]
[1759321077753,18.70014562,217.76,217.62,11.4877877]
[1759321077754,18.70014562,217.76,217.64,35.82]
[1759321077959,4.38455161,217.72,217.65,33.94]
[1759321078132,4.59326627,217.71,217.65,33.94]
[1759321079034,4.59304174,217.73,217.65,33.94]
[1759321079230,20.45970422,217.73,217.65,33.94]
[1759321079661,4.59304174,217.73,217.65,33.94]
[1759321079855,4.59304174,217.73,217.65,38.53448657]
[1759321080231,4.59263341,217.74,217.65,38.53448657]
[1759321080427,5.10455161,217.77,217.65,38.53448657]
[1759321080428,4.59157904,217.79,217.68,20.8]
[1759321080648,4.59157904,217.79,217.69,33.92]
[1759321081044,18.70014562,217.78,217.69,33.92]
[1759321081245,14.31559401,217.78,217.69,33.92]
[1759321081438,18.70014562,217.78,217.69,33.92]
[1759321081643,14.31559401,217.78,217.69,33.92]
[1759321081955,16.07200256,217.77,217.69,33.92]
[1759321082153,13.59559401,217.76,217.69,33.92]
[1759321082375,18.70014562,217.76,217.7,33.92]
[1759321082571,18.70014562,217.76,217.71,33.92]
[1759321082859,18.70014562,217.76,217.72,33.9]
[1759321083063,14.31559401,217.76,217.72,33.9]
[1759321083553,13.59559401,217.76,217.72,33.9]
[1759321083765,16.07200256,217.77,217.72,33.9]
[1759321083766,4.59200073,217.77,217.72,33.9]
[1759321083933,14.31559401,217.79,217.73,33.88]
[1759321084140,4.59115743,217.81,217.74,33.88]
[1759321084358,0.72,217.86,217.75,33.88]
[1759321084535,12.19556468,217.86,217.76,33.9]
[1759321084737,4.58989305,217.87,217.76,33.9]
[1759321085043,4.58989305,217.87,217.79,20.8]
[1759321085252,4.58989305,217.87,217.8,33.92]
[1759321085561,0.1,217.88,217.8,33.92]
[1759321086159,0.1,217.88,217.81,4.59115743]
[1759321086337,0.1,217.88,217.81,16.069051]
[1759321086540,9.07428235,217.88,217.82,33.92]
[1759321086754,4.38455161,217.87,217.79,20.8]
[1759321086952,5.10455161,217.87,217.8,33.9]
[1759321087460,13.59559401,217.85,217.72,16.07565693]
[1759321087663,13.59559401,217.85,217.73,33.92]
[1759321087664,4.38455161,217.84,217.73,33.92]
[1759321087867,4.38455161,217.84,217.76,20.8]
[1759321088164,4.59073589,217.83,217.77,33.92]
[1759321088753,0.1,217.88,217.77,49.99184489]
[1759321088992,4.68968717,217.88,217.8,20.8]
[1759321089296,4.68968717,217.88,217.81,33.9]
[1759321090273,16.16389315,217.88,217.81,33.9]
[1759321091364,4.68968717,217.88,217.81,33.9]
[1759321091554,0.1,217.88,217.81,38.49113831]
[1759321091958,0.1,217.88,217.81,33.9]
[1759321092190,0.1,217.88,217.81,38.49111698]
[1759321092553,0.1,217.88,217.76,35.82]
[1759321092554,17.98014562,217.85,217.76,35.82]
[1759321092858,0.72,217.87,217.77,33.96]
[1759321092859,16.78462568,217.87,217.77,33.96]
[1759321093070,21.16917729,217.87,217.77,33.96]
[1759321093260,4.58989305,217.87,217.77,33.96]
[1759321093472,4.58989305,217.87,217.8,20.8]
[1759321093660,4.58989305,217.87,217.81,34.1]
[1759321094487,4.58989305,217.87,217.82,34.1]
[1759321094488,4.38455161,217.85,217.82,34.1]
[1759321094658,18.70014562,217.86,217.82,34.1]
[1759321094855,0.72,217.84,217.76,35.82]
[1759321095177,4.38455161,217.83,217.77,34.1]
[1759321095555,5.10455161,217.84,217.77,34.1]
[1759321095756,13.59559401,217.84,217.77,34.1]
[1759321095989,13.59559401,217.86,217.77,34.1]
[1759321096169,16.06462568,217.87,217.77,34.1]
[1759321096370,16.06462568,217.87,217.78,4.59178987]
[1759321096574,4.58989305,217.87,217.78,4.59178987]
[1759321096787,16.06462568,217.87,217.77,34.1]
[1759321097461,5.10455161,217.86,217.79,20.8]
[1759321097662,16.06462568,217.87,217.76,35.82]
[1759321097663,4.38455161,217.82,217.76,35.82]
[1759321097962,0.72,217.83,217.77,34.08]
[1759321098173,4.38455161,217.83,217.77,34.08]
[1759321098553,4.59094665,217.82,217.77,34.08]
[1759321098954,4.5907647,217.83,217.77,34.08]
[1759321099188,4.5907647,217.83,217.77,38.67192056]
[1759321099575,18.18569774,217.86,217.77,38.67192056]
[1759321099783,4.59010373,217.86,217.77,38.67192056]
[1759321100375,4.5899052,217.87,217.8,20.8]
[1759321100559,4.68970979,217.88,217.81,38.67115743]
[1759321101989,0.1,217.88,217.81,38.67115743]
[1759321102211,4.68972043,217.88,217.81,34.08]
[1759321102996,16.16392641,217.88,217.82,34.04]
[1759321103657,5.04455161,217.87,217.76,35.82]
[1759321103864,18.64014562,217.86,217.8,20.8]
[1759321104074,16.16392641,217.88,217.81,34.04]
[1759321104368,13.59559401,217.87,217.81,34.04]
[1759321104580,16.06536307,217.86,217.81,34.04]
[1759321104886,16.06536307,217.86,217.76,35.82]
[1759321104887,4.38455161,217.83,217.76,35.82]
[1759321105089,4.38455161,217.81,217.76,35.82]
[1759321105393,5.04455161,217.82,217.77,34.04]
[1759321105568,0.66,217.82,217.77,34.04]
[1759321105888,0.66,217.81,217.77,34.04]
[1759321106089,4.38455161,217.82,217.77,34.04]
[1759321106387,39.01588175,217.86,217.76,35.82]
[1759321106388,4.38455161,217.78,217.76,35.82]
[1759321106590,9.63655234,217.77,217.76,35.82]
[1759321106791,23.23214635,217.77,217.76,69.86]
[1759321106994,23.23214635,217.77,217.76,35.82]
[1759321107169,23.23214635,217.77,217.76,69.86]
[1759321108477,13.59559401,217.76,217.65,35.8]
[1759321108668,4.59326627,217.71,217.66,34.02]
[1759321109689,0.66,217.7,217.67,34.02]
[1759321109994,16.07643194,217.71,217.67,34.02]
[1759321110166,4.59326627,217.71,217.67,34.02]
[1759321110861,5.25326627,217.71,217.67,34.02]
[1759321111061,0.66,217.7,217.67,34.02]
[1759321111791,22.54337929,217.71,217.67,34.02]
[1759321111792,0.66,217.69,217.67,34.02]
[1759321111993,13.59559401,217.7,217.67,34.02]
[1759321112482,14.25559401,217.7,217.67,34.02]
[1759321112795,18.1890845,217.7,217.67,34.02]
[1759321113170,18.18884353,217.72,217.67,34.02]
[1759321113576,18.84884353,217.72,217.67,34.02]
[1759321113775,30.33148178,217.72,217.67,34.02]
[1759321114585,13.59559401,217.7,217.67,34.02]
[1759321114781,4.59368827,217.69,217.67,34.02]
[1759321115162,4.59368827,217.69,217.68,33.96]
[1759321115393,18.84907569,217.7,217.68,33.96]
[1759321115885,0.66,217.69,217.68,33.96]
[1759321116082,20.72254136,217.69,217.68,33.96]
[1759321116585,20.72254136,217.69,217.65,35.8]
[1759321116586,13.59559401,217.68,217.65,35.8]
[1759321116887,11.06126876,217.66,217.65,35.8]
[1759321117079,11.72126876,217.66,217.65,69.74]
[1759321119686,25.31686277,217.66,217.65,69.74]
[1759321120375,4.59432141,217.66,217.65,69.74]
[1759321121290,4.59411662,217.67,217.65,69.74]
[1759321121603,4.5937387,217.69,217.65,69.74]
[1759321122794,16.07795938,217.69,217.65,69.74]
[1759321122998,13.59559401,217.67,217.66,33.9]
[1759321123300,18.18970436,217.67,217.66,33.9]
[1759321124877,4.59411035,217.67,217.66,33.9]
[1759321125274,4.59347726,217.7,217.66,33.9]
[1759321125798,12.14305393,217.72,217.66,33.9]
[1759321125799,13.59559401,217.72,217.66,33.9]
[1759321126489,18.18864931,217.72,217.66,33.9]
[1759321127296,18.18864931,217.72,217.65,35.8]
[1759321127297,20.06254136,217.69,217.65,35.8]
[1759321127473,16.07717041,217.7,217.65,35.8]
[1759321127474,20.06254136,217.66,217.65,35.8]
[1759321127675,13.59559401,217.62,217.54,35.82]
[1759321127874,6.46694735,217.6,217.55,33.84]
[1759321128178,6.46694735,217.59,217.55,33.84]
[1759321128374,13.59559401,217.62,217.55,33.84]
[1759321128575,13.59559401,217.6,217.55,33.84]
[1759321128997,20.06254136,217.6,217.55,33.84]
[1759321129180,6.46694735,217.57,217.55,33.84]
[1759321129380,4.59643316,217.56,217.55,33.84]
[1759321130085,4.59620796,217.58,217.55,33.84]
[1759321130898,5.25620796,217.58,217.55,33.84]
[1759321131089,4.59620796,217.58,217.55,33.84]
[1759321131285,4.59643316,217.56,217.55,33.84]
[1759321131591,24.65897452,217.56,217.55,33.84]
[1759321131785,13.59559401,217.55,217.54,35.82]
[1759321132098,13.59559401,217.55,217.54,69.62]
[1759321132099,20.72254136,217.55,217.54,69.62]
[1759321132700,14.25559401,217.55,217.54,69.62]
[1759321133278,18.85223845,217.55,217.54,69.62]
[1759321133702,25.3191858,217.55,217.54,69.62]
[1759321135303,18.85223845,217.55,217.54,69.62]
[1759321135798,18.19223845,217.55,217.54,69.62]
[1759321136010,4.59643787,217.56,217.54,69.62]
[1759321137992,4.5962243,217.57,217.54,69.62]
[1759321138310,13.59559401,217.59,217.54,69.62]
[1759321138486,4.59558823,217.6,217.54,69.62]
[1759321139584,16.08416856,217.61,217.54,69.62]
[1759321140482,6.46694735,217.59,217.55,33.72]
[1759321140906,13.59559401,217.6,217.55,33.72]
[1759321141504,11.48844262,217.61,217.55,33.72]
[1759321142799,41.58254136,217.63,217.55,33.72]
[1759321142800,18.1905607,217.63,217.55,33.72]
[1759321143092,13.59559401,217.62,217.54,35.82]
[1759321143286,13.59559401,217.56,217.54,35.82]
[1759321143502,13.59559401,217.56,217.55,33.66]
[1759321143709,25.37897452,217.56,217.55,33.66]
[1759321143910,18.19202717,217.56,217.55,33.66]
[1759321144715,24.65897452,217.56,217.55,33.66]
[1759321144900,18.19202717,217.56,217.55,33.66]
[1759321145215,25.37897452,217.56,217.55,33.66]
[1759321145712,25.37897452,217.56,217.54,35.82]
[1759321145889,20.78254136,217.55,217.54,35.82]
[1759321146090,20.78254136,217.55,217.54,69.46]
[1759321146809,20.8,217.55,217.54,69.46]
[1759321147489,11.06338051,217.56,217.54,69.46]
[1759321148382,32.29020749,217.58,217.54,69.46]
[1759321148383,18.19181591,217.57,217.54,69.46]
[1759321148612,24.65876326,217.57,217.54,69.46]
[1759321148815,36.14931802,217.57,217.54,69.46]
[1759321148997,4.5962219,217.57,217.54,69.46]
[1759321150608,16.08629815,217.58,217.54,69.46]
[1759321150805,4.59601066,217.58,217.54,69.46]
[1759321151123,20.06254136,217.59,217.54,69.46]
[1759321151124,4.59580966,217.59,217.54,69.46]
[1759321151326,4.59534823,217.62,217.54,74.05684633]
[1759321151498,4.59534823,217.62,217.54,85.5489857]
[1759321151826,14.31559401,217.65,217.54,85.5489857]
[1759321152125,36.863412,217.65,217.54,85.5489857]
[1759321152306,6.46694735,217.63,217.54,69.46]
[1759321152818,4.59516588,217.62,217.54,69.46]
[1759321153021,6.46694735,217.61,217.54,35.82]
[1759321153324,4.59516588,217.62,217.55,33.56]
[1759321154998,4.59495465,217.64,217.56,4.59643316]
[1759321155221,4.59495465,217.64,217.57,33.56]
[1759321155425,4.5945063,217.66,217.57,33.56]
[1759321155726,20.8,217.7,217.57,33.56]
[1759321156110,4.59347726,217.7,217.57,33.56]
[1759321156523,16.07717041,217.7,217.57,33.56]
[1759321156841,4.59347726,217.7,217.6,20.8]
[1759321157023,4.59347726,217.7,217.61,33.54]
[1759321157212,4.59326627,217.71,217.62,38.13516588]
[1759321157416,16.07643194,217.71,217.63,33.54]
[1759321157722,16.07643194,217.71,217.62,4.59516588]
[1759321158035,6.46694735,217.67,217.63,33.52]
[1759321158221,6.46694735,217.67,217.64,33.52]
[1759321158422,6.46694735,217.67,217.58,4.59585421]
[1759321158423,6.46694735,217.67,217.65,33.52]
[1759321159229,11.06084665,217.68,217.65,33.52]
[1759321159531,11.75084665,217.68,217.65,33.52]
[1759321160030,4.5938993,217.68,217.65,33.52]
[1759321160616,4.5938993,217.68,217.66,33.5]
[1759321161122,13.59559401,217.66,217.54,35.82]
[1759321161433,6.46694735,217.62,217.55,33.48]
[1759321161921,13.59559401,217.64,217.55,33.48]
[1759321162238,6.46694735,217.63,217.55,33.48]
[1759321162707,6.46694735,217.62,217.55,33.48]
[1759321163110,0.69,217.64,217.55,33.48]
[1759321163342,6.46694735,217.6,217.54,35.82]
[1759321163513,6.46694735,217.57,217.54,35.82]
[1759321163710,13.59559401,217.58,217.55,33.46]
[1759321163914,0.72,217.58,217.55,33.46]
[1759321164117,13.59559401,217.58,217.55,33.46]
[1759321165214,4.5962219,217.57,217.55,33.46]
[1759321165424,4.59579943,217.59,217.55,33.46]
[1759321166127,5.31579943,217.59,217.55,33.46]
[1759321166529,4.59579943,217.59,217.55,33.46]
[1759321167045,4.59558046,217.61,217.55,33.46]
[1759321167340,4.59495473,217.63,217.55,38.05658755]
[1759321168038,16.08234157,217.63,217.55,33.46]
[1759321168221,4.59495473,217.63,217.55,38.05664355]
[1759321168544,4.59495473,217.63,217.55,33.46]
[1759321168844,6.46694735,217.61,217.54,35.82]
[1759321169051,6.46694735,217.61,217.56,33.4]
[1759321169221,4.59579943,217.59,217.57,33.4]
[1759321169421,13.59559401,217.62,217.57,33.4]
[1759321169422,4.59474456,217.64,217.57,33.4]
[1759321169643,11.06169191,217.64,217.57,33.4]
[1759321169952,5.31474456,217.64,217.57,33.4]
[1759321170449,4.59474456,217.64,217.57,33.4]
[1759321170621,0.72,217.67,217.57,33.4]
[1759321170816,18.18928228,217.69,217.57,33.4]
[1759321171133,4.59368827,217.69,217.6,20.8]
[1759321171340,16.0760627,217.72,217.62,4.59516588]
[1759321172739,16.0760627,217.72,217.62,16.08308059]
[1759321173134,4.5930553,217.72,217.62,16.08308059]
[1759321173434,13.59559401,217.76,217.65,20.8]
[1759321173636,13.59559401,217.76,217.66,33.42]
[1759321173844,5.3120057,217.77,217.66,33.42]
[1759321174039,4.5920057,217.77,217.66,33.42]
[1759321174657,30.38685857,217.78,217.67,4.59411035]
[1759321175331,18.90738388,217.78,217.67,4.59411035]
[1759321175524,0.72,217.77,217.67,4.59411035]
[1759321176122,0.72,217.77,217.67,16.07938622]
[1759321176550,4.5922116,217.76,217.68,33.44]
[1759321177133,4.59150505,217.8,217.71,20.8]
[1759321177331,0.72,217.79,217.72,33.42]
[1759321177562,0.72,217.79,217.7,20.8]
[1759321177744,4.59150505,217.8,217.71,69.26]
[1759321178329,0.72,217.79,217.71,69.26]
[1759321178738,0.72,217.79,217.71,73.8532402]
[1759321178934,16.06910437,217.81,217.71,73.8532402]
[1759321179563,4.59115743,217.81,217.71,85.33640587]
[1759321180054,0.72,217.8,217.71,73.8532402]
[1759321180446,4.59157904,217.79,217.71,73.8532402]
[1759321180642,16.07052665,217.79,217.71,69.26]
[1759321180836,0.72,217.78,217.71,73.85325556]
[1759321181041,16.07052665,217.79,217.71,73.85325556]
[1759321181757,14.31559401,217.84,217.71,85.33642123]
[1759321182260,16.78757562,217.83,217.71,51.91642123]
[1759321182499,0.72,217.82,217.72,33.38]
[1759321183467,4.59115743,217.81,217.73,4.59284434]
[1759321184365,4.59076831,217.83,217.73,16.07495521]
[1759321185462,0.72,217.82,217.73,16.07495521]
[1759321185845,0.72,217.82,217.72,4.59303332]
[1759321186051,0.72,217.82,217.73,33.34]
[1759321187055,0.72,217.81,217.73,33.34]
[1759321187258,0.72,217.81,217.72,4.59303332]
[1759321187455,4.59136822,217.8,217.73,33.32]
[1759321187658,4.59136822,217.8,217.74,33.32]
[1759321188970,4.59136822,217.8,217.71,40.43325809]
[1759321189179,4.59136822,217.8,217.72,33.32]
[1759321189348,4.59136822,217.8,217.72,37.91303936]
[1759321190351,4.59136822,217.8,217.73,37.89283065]
[1759321192371,4.59136822,217.8,217.73,37.89284375]
[1759321192869,18.70824204,217.79,217.71,35.84]
[1759321193046,0.72,217.79,217.72,33.28]
[1759321193248,14.25559401,217.78,217.72,33.28]
[1759321193560,0.66,217.78,217.72,33.28]
[1759321193747,13.59559401,217.76,217.72,33.28]
[1759321194073,0.66,217.75,217.72,33.28]
[1759321194273,13.59559401,217.79,217.71,35.84]
[1759321194274,17.98824204,217.79,217.71,35.84]
[1759321194452,0.66,217.78,217.72,33.26]